[Event "Titled Tuesday Blitz January 10 Late 2023"]
[White "Szyszylo, Rafal"]
[Black "Gubajdullin, Alexei"]
[WhiteFideId "1109626"]
[BlackFideId "4141202"]
[WhiteElo "2091"]
[BlackElo "2285"]
[Result "0-1"]
[Round "06"]
[TimeControl "180+2"]
[Date "2023.01.10"]
[WhiteClock "0:00:02"]
[BlackClock "0:01:12"]

1. e4 {[%clk 0:00:00]}  g6 {[%clk 0:00:00]} 2. d4 {[%clk 0:02:58]}  d6 {[%clk 0:02:58]} 3. Be3 {[%clk 0:02:58]}  Bg7 {[%clk 0:02:58]} 4. Qd2 {[%clk 0:02:57]}  c6 {[%clk 0:02:57]} 5. Nf3 {[%clk 0:02:57]}  Nd7 {[%clk 0:02:55]} 6. a4 {[%clk 0:02:56]}  Ngf6 {[%clk 0:02:53]} 7. Nc3 {[%clk 0:02:53]}  e5 {[%clk 0:02:52]} 8. h3 {[%clk 0:02:52]}  Qe7 {[%clk 0:02:50]} 9. dxe5 {[%clk 0:02:51]}  dxe5 {[%clk 0:02:49]} 10. a5 {[%clk 0:02:44]}  Nc5 {[%clk 0:02:49]} 11. Bd3 {[%clk 0:02:43]}  O-O {[%clk 0:02:49]} 12. O-O {[%clk 0:02:32]}  Rd8 {[%clk 0:02:48]} 13. Qe2 {[%clk 0:02:31]}  Nh5 {[%clk 0:02:47]} 14. Bc4 {[%clk 0:02:29]}  Ne6 {[%clk 0:02:43]} 15. g3 {[%clk 0:02:21]}  Nd4 {[%clk 0:02:41]} 16. Bxd4 {[%clk 0:02:19]}  exd4 {[%clk 0:02:40]} 17. Na4 {[%clk 0:02:07]}  Bxh3 {[%clk 0:02:40]} 18. Rfe1 {[%clk 0:02:05]}  Bg4 {[%clk 0:02:38]} 19. Qd3 {[%clk 0:01:58]}  Nf6 {[%clk 0:02:23]} 20. Nh2 {[%clk 0:01:56]}  Be6 {[%clk 0:02:15]} 21. Bxe6 {[%clk 0:01:55]}  Qxe6 {[%clk 0:02:14]} 22. Nc5 {[%clk 0:01:41]}  Qe7 {[%clk 0:02:13]} 23. b4 {[%clk 0:01:39]}  Nd7 {[%clk 0:02:13]} 24. Nxb7 {[%clk 0:01:38]}  Rdb8 {[%clk 0:02:12]} 25. a6 {[%clk 0:01:36]}  Qxb4 {[%clk 0:02:12]} 26. Rab1 {[%clk 0:01:35]}  Qe7 {[%clk 0:02:11]} 27. Qc4 {[%clk 0:01:29]}  Ne5 {[%clk 0:02:09]} 28. Qc5 {[%clk 0:01:27]}  Qxc5 {[%clk 0:02:08]} 29. Nxc5 {[%clk 0:01:21]}  Rb6 {[%clk 0:01:54]} 30. f4 {[%clk 0:01:22]}  Nc4 {[%clk 0:01:53]} 31. e5 {[%clk 0:01:17]}  Bf8 {[%clk 0:01:52]} 32. Ne4 {[%clk 0:01:14]}  Ne3 {[%clk 0:01:50]} 33. c3 {[%clk 0:00:47]}  Rxb1 {[%clk 0:01:43]} 34. Rxb1 {[%clk 0:00:34]}  dxc3 {[%clk 0:01:40]} 35. Nxc3 {[%clk 0:00:34]}  Bc5 {[%clk 0:01:40]} 36. Kh1 {[%clk 0:00:34]}  Nf5 {[%clk 0:01:41]} 37. Kg2 {[%clk 0:00:32]}  Rd8 {[%clk 0:01:36]} 38. Ne4 {[%clk 0:00:31]}  Bb6 {[%clk 0:01:35]} 39. Ng4 {[%clk 0:00:29]}  Rd3 {[%clk 0:01:34]} 40. Ngf6+ {[%clk 0:00:27]}  Kg7 {[%clk 0:01:31]} 41. g4 {[%clk 0:00:26]}  Ne3+ {[%clk 0:01:31]} 42. Kh2 {[%clk 0:00:21]}  Ra3 {[%clk 0:01:29]} 43. Rc1 {[%clk 0:00:20]}  Rxa6 {[%clk 0:01:27]} 44. Rxc6 {[%clk 0:00:18]}  Nxg4+ {[%clk 0:01:19]} 45. Nxg4 {[%clk 0:00:18]}  Bg1+ {[%clk 0:01:18]} 46. Kxg1 {[%clk 0:00:14]}  Rxc6 {[%clk 0:01:18]} 47. Kf2 {[%clk 0:00:14]}  a5 {[%clk 0:01:18]} 48. Ke3 {[%clk 0:00:11]}  a4 {[%clk 0:01:17]} 49. Kd3 {[%clk 0:00:10]}  a3 {[%clk 0:01:17]} 50. Nc3 {[%clk 0:00:05]}  Ra6 {[%clk 0:01:17]} 51. Na2 {[%clk 0:00:06]}  Ra4 {[%clk 0:01:16]} 52. Nf2 {[%clk 0:00:06]}  Rxf4 {[%clk 0:01:16]} 53. Ne4 {[%clk 0:00:02]}  h5 {[%clk 0:01:15]} 54. Ke3 {[%clk 0:00:03]}  Rf1 {[%clk 0:01:14]} 55. Nec3 {[%clk 0:00:03]}  h4 {[%clk 0:01:13]} 56. Ke2 {[%clk 0:00:02]}  Rf5 {[%clk 0:01:12]} 0-1


[Site "https://www.chess.com"]

[Event "Titled Tuesday Blitz January 10 Late 2023"]
[White "Sivakumar, Shaashwath"]
[Black "Solon, Nathan"]
[WhiteFideId "30912156"]
[BlackFideId "2017229"]
[WhiteElo "2198"]
[BlackElo "2306"]
[Result "0-1"]
[Round "06"]
[TimeControl "180+2"]
[Date "2023.01.10"]
[WhiteClock "0:00:01"]
[BlackClock "0:00:28"]

1. d4 {[%clk 0:00:00]}  Nf6 {[%clk 0:00:00]} 2. c4 {[%clk 0:03:00]}  c5 {[%clk 0:02:59]} 3. d5 {[%clk 0:02:52]}  b5 {[%clk 0:02:59]} 4. cxb5 {[%clk 0:02:51]}  a6 {[%clk 0:02:59]} 5. bxa6 {[%clk 0:02:51]}  g6 {[%clk 0:03:00]} 6. g3 {[%clk 0:02:50]}  Bg7 {[%clk 0:03:00]} 7. Bg2 {[%clk 0:02:49]}  d6 {[%clk 0:02:57]} 8. Nc3 {[%clk 0:02:49]}  O-O {[%clk 0:02:55]} 9. Nf3 {[%clk 0:02:49]}  Nxa6 {[%clk 0:02:54]} 10. O-O {[%clk 0:02:48]}  Bf5 {[%clk 0:02:54]} 11. Nh4 {[%clk 0:02:48]}  Bd7 {[%clk 0:02:54]} 12. Bd2 {[%clk 0:02:46]}  Qb6 {[%clk 0:02:54]} 13. Qc1 {[%clk 0:02:42]}  Rfb8 {[%clk 0:02:52]} 14. Rb1 {[%clk 0:02:38]}  Ng4 {[%clk 0:02:51]} 15. b3 {[%clk 0:02:37]}  c4 {[%clk 0:02:32]} 16. bxc4 {[%clk 0:02:25]}  Qc5 {[%clk 0:02:16]} 17. Rxb8+ {[%clk 0:02:11]}  Rxb8 {[%clk 0:02:16]} 18. Ne4 {[%clk 0:02:02]}  Qc7 {[%clk 0:02:17]} 19. Bg5 {[%clk 0:01:59]}  f5 {[%clk 0:02:14]} 20. Nd2 {[%clk 0:00:51]}  h6 {[%clk 0:01:51]} 21. Bxe7 {[%clk 0:00:43]}  Kf7 {[%clk 0:01:49]} 22. h3 {[%clk 0:00:36]}  Ne5 {[%clk 0:01:44]} 23. f4 {[%clk 0:00:23]}  Qb6+ {[%clk 0:01:36]} 24. Kh2 {[%clk 0:00:22]}  Kxe7 {[%clk 0:01:07]} 25. fxe5 {[%clk 0:00:17]}  dxe5 {[%clk 0:01:07]} 26. Qc2 {[%clk 0:00:17]}  Nb4 {[%clk 0:01:08]} 27. Qb3 {[%clk 0:00:12]}  Be8 {[%clk 0:00:53]} 28. Rb1 {[%clk 0:00:07]}  Qd6 {[%clk 0:00:42]} 29. a3 {[%clk 0:00:04]}  Na6 {[%clk 0:00:36]} 30. Qc2 {[%clk 0:00:03]}  Rxb1 {[%clk 0:00:36]} 31. Qxb1 {[%clk 0:00:02]}  e4 {[%clk 0:00:34]} 32. Qb7+ {[%clk 0:00:03]}  Kf8 {[%clk 0:00:33]} 33. Nb3 {[%clk 0:00:03]}  Be5 {[%clk 0:00:31]} 34. c5 {[%clk 0:00:02]}  Bxg3+ {[%clk 0:00:29]} 35. Kg1 {[%clk 0:00:01]}  Qf4 {[%clk 0:00:28]} 0-1


[Site "https://www.chess.com"]

[Event "Titled Tuesday Blitz January 10 Late 2023"]
[White "Dedona, Mark"]
[Black "Filgueira, Hernan"]
[WhiteFideId "30920256"]
[BlackFideId "101770"]
[WhiteElo "1662"]
[BlackElo "2283"]
[Result "0-1"]
[Round "06"]
[TimeControl "180+2"]
[Date "2023.01.10"]
[WhiteClock "0:02:26"]
[BlackClock "0:02:22"]

1. e4 {[%clk 0:00:00]}  e6 {[%clk 0:00:00]} 2. d4 {[%clk 0:03:00]}  d5 {[%clk 0:02:59]} 3. exd5 {[%clk 0:03:00]}  exd5 {[%clk 0:02:58]} 4. Bd3 {[%clk 0:03:01]}  Bd6 {[%clk 0:02:57]} 5. Ne2 {[%clk 0:03:02]}  Ne7 {[%clk 0:02:56]} 6. Nbc3 {[%clk 0:03:02]}  c6 {[%clk 0:02:55]} 7. Bf4 {[%clk 0:03:02]}  Bf5 {[%clk 0:02:52]} 8. f3 {[%clk 0:03:02]}  Na6 {[%clk 0:02:50]} 9. a3 {[%clk 0:02:53]}  Nc7 {[%clk 0:02:44]} 10. Bxd6 {[%clk 0:02:52]}  Qxd6 {[%clk 0:02:44]} 11. Ng3 {[%clk 0:02:50]}  Bg6 {[%clk 0:02:43]} 12. O-O {[%clk 0:02:51]}  Qf4 {[%clk 0:02:38]} 13. Bxg6 {[%clk 0:02:48]}  hxg6 {[%clk 0:02:33]} 14. Re1 {[%clk 0:02:41]}  Ne6 {[%clk 0:02:32]} 15. Nce2 {[%clk 0:02:39]}  Qe3+ {[%clk 0:02:31]} 16. Kh1 {[%clk 0:02:32]}  O-O-O {[%clk 0:02:30]} 17. c3 {[%clk 0:02:31]}  Rxh2+ {[%clk 0:02:28]} 18. Kxh2 {[%clk 0:02:28]}  Rh8+ {[%clk 0:02:24]} 19. Nh5 {[%clk 0:02:25]}  Rxh5+ {[%clk 0:02:23]} 20. Kg3 {[%clk 0:02:26]}  Nf5+ {[%clk 0:02:23]} 21. Kg4 {[%clk 0:02:26]}  Qg5# {[%clk 0:02:22]} 0-1


[Site "https://www.chess.com"]

[Event "Titled Tuesday Blitz January 10 Late 2023"]
[White "Skaric, Djuro"]
[Black "Golubev, Mikhail"]
[WhiteFideId "934569"]
[BlackFideId "14100983"]
[WhiteElo "2334"]
[BlackElo "2461"]
[Result "1-0"]
[Round "06"]
[TimeControl "180+2"]
[Date "2023.01.10"]
[WhiteClock "0:01:05"]
[BlackClock "0:00:08"]

1. g3 {[%clk 0:00:00]}  g6 {[%clk 0:00:00]} 2. Bg2 {[%clk 0:03:00]}  Bg7 {[%clk 0:02:58]} 3. d3 {[%clk 0:03:00]}  e5 {[%clk 0:02:59]} 4. e4 {[%clk 0:03:01]}  Nc6 {[%clk 0:02:57]} 5. Nc3 {[%clk 0:03:01]}  d6 {[%clk 0:02:55]} 6. f4 {[%clk 0:03:01]}  Nge7 {[%clk 0:02:55]} 7. Nf3 {[%clk 0:03:01]}  O-O {[%clk 0:02:53]} 8. O-O {[%clk 0:03:01]}  h6 {[%clk 0:02:50]} 9. h3 {[%clk 0:03:01]}  exf4 {[%clk 0:02:37]} 10. gxf4 {[%clk 0:02:51]}  f5 {[%clk 0:02:33]} 11. Be3 {[%clk 0:02:51]}  d5 {[%clk 0:02:29]} 12. exd5 {[%clk 0:02:44]}  Nxd5 {[%clk 0:02:16]} 13. Nxd5 {[%clk 0:02:44]}  Qxd5 {[%clk 0:02:16]} 14. Ne5 {[%clk 0:02:45]}  Qd6 {[%clk 0:02:16]} 15. Nxc6 {[%clk 0:02:45]}  bxc6 {[%clk 0:01:58]} 16. c3 {[%clk 0:02:43]}  Ba6 {[%clk 0:01:58]} 17. Rf2 {[%clk 0:02:41]}  Kh7 {[%clk 0:01:42]} 18. d4 {[%clk 0:02:00]}  Rfe8 {[%clk 0:01:13]} 19. Qf3 {[%clk 0:01:51]}  Re6 {[%clk 0:01:05]} 20. Bf1 {[%clk 0:01:51]}  Rae8 {[%clk 0:00:45]} 21. Bd2 {[%clk 0:01:48]}  Bxf1 {[%clk 0:00:37]} 22. Raxf1 {[%clk 0:01:45]}  c5 {[%clk 0:00:33]} 23. dxc5 {[%clk 0:01:43]}  Qxc5 {[%clk 0:00:30]} 24. Kh2 {[%clk 0:01:40]}  a5 {[%clk 0:00:30]} 25. Rg1 {[%clk 0:01:40]}  a4 {[%clk 0:00:23]} 26. a3 {[%clk 0:01:40]}  Qc4 {[%clk 0:00:20]} 27. Rgg2 {[%clk 0:01:40]}  Re4 {[%clk 0:00:18]} 28. Qg3 {[%clk 0:01:40]}  R8e6 {[%clk 0:00:14]} 29. h4 {[%clk 0:01:38]}  h5 {[%clk 0:00:13]} 30. Qf3 {[%clk 0:01:37]}  Bf6 {[%clk 0:00:12]} 31. Kh3 {[%clk 0:01:13]}  Be7 {[%clk 0:00:12]} 32. Rg3 {[%clk 0:01:07]}  Bd6 {[%clk 0:00:12]} 33. Rfg2 {[%clk 0:01:07]}  Bxf4 {[%clk 0:00:10]} 34. Rxg6 {[%clk 0:01:05]}  Rxg6 {[%clk 0:00:10]} 35. Qxh5+ {[%clk 0:01:05]}  Rh6 {[%clk 0:00:08]} 36. Qxf5+ {[%clk 0:01:05]}  Kh8 {[%clk 0:00:08]} 37. Qf8+ {[%clk 0:01:05]} 1-0


[Site "https://www.chess.com"]

[Event "Titled Tuesday Blitz January 10 Late 2023"]
[White "Bayo Milagro, Alvaro"]
[Black "Alexikov, Alexander"]
[WhiteFideId "22275240"]
[BlackFideId "14103958"]
[WhiteElo "2287"]
[BlackElo "2209"]
[Result "1-0"]
[Round "06"]
[TimeControl "180+2"]
[Date "2023.01.10"]
[WhiteClock "0:00:23"]
[BlackClock "0:00:29"]

1. e4 {[%clk 0:00:00]}  c5 {[%clk 0:00:00]} 2. Nf3 {[%clk 0:03:00]}  d5 {[%clk 0:02:58]} 3. exd5 {[%clk 0:03:00]}  Nf6 {[%clk 0:02:58]} 4. Nc3 {[%clk 0:02:59]}  Nxd5 {[%clk 0:02:57]} 5. Bb5+ {[%clk 0:02:39]}  Bd7 {[%clk 0:02:55]} 6. Bc4 {[%clk 0:02:35]}  Nb6 {[%clk 0:02:50]} 7. Be2 {[%clk 0:02:35]}  Nc6 {[%clk 0:02:48]} 8. O-O {[%clk 0:01:47]}  Bg4 {[%clk 0:02:47]} 9. h3 {[%clk 0:01:47]}  Bh5 {[%clk 0:02:46]} 10. a4 {[%clk 0:01:47]}  e6 {[%clk 0:02:44]} 11. a5 {[%clk 0:01:47]}  Nd5 {[%clk 0:02:40]} 12. a6 {[%clk 0:01:46]}  b6 {[%clk 0:02:40]} 13. g4 {[%clk 0:01:47]}  Bg6 {[%clk 0:02:26]} 14. Bb5 {[%clk 0:01:41]}  Rc8 {[%clk 0:02:24]} 15. d4 {[%clk 0:01:41]}  Nb4 {[%clk 0:02:19]} 16. Bf4 {[%clk 0:01:32]}  Bd6 {[%clk 0:02:01]} 17. Bxd6 {[%clk 0:01:10]}  Qxd6 {[%clk 0:01:33]} 18. d5 {[%clk 0:00:57]}  exd5 {[%clk 0:01:32]} 19. Re1+ {[%clk 0:00:51]}  Kf8 {[%clk 0:01:15]} 20. Bxc6 {[%clk 0:00:44]}  Rxc6 {[%clk 0:01:14]} 21. Ne5 {[%clk 0:00:43]}  Rc8 {[%clk 0:00:57]} 22. Nb5 {[%clk 0:00:40]}  Qd8 {[%clk 0:00:45]} 23. c3 {[%clk 0:00:37]}  Nc6 {[%clk 0:00:37]} 24. Nxc6 {[%clk 0:00:30]}  Rxc6 {[%clk 0:00:34]} 25. Nxa7 {[%clk 0:00:26]}  Re6 {[%clk 0:00:34]} 26. Nb5 {[%clk 0:00:26]}  Rxe1+ {[%clk 0:00:29]} 27. Qxe1 {[%clk 0:00:23]} 1-0


[Site "https://www.chess.com"]

[Event "Titled Tuesday Blitz January 10 Late 2023"]
[White "Przybylski, Wojciech"]
[Black "Lopez Idarraga, Daniel Eduardo"]
[WhiteFideId "1117599"]
[BlackFideId "4405501"]
[WhiteElo "2321"]
[BlackElo "2009"]
[Result "1-0"]
[Round "06"]
[TimeControl "180+2"]
[Date "2023.01.10"]
[WhiteClock "0:01:49"]
[BlackClock "0:01:41"]

1. d4 {[%clk 0:00:00]}  d5 {[%clk 0:00:00]} 2. Nf3 {[%clk 0:03:00]}  Nf6 {[%clk 0:02:59]} 3. c4 {[%clk 0:02:53]}  e6 {[%clk 0:02:59]} 4. g3 {[%clk 0:02:53]}  dxc4 {[%clk 0:02:59]} 5. Bg2 {[%clk 0:02:52]}  b5 {[%clk 0:02:58]} 6. O-O {[%clk 0:02:52]}  Bb7 {[%clk 0:02:57]} 7. Re1 {[%clk 0:02:51]}  a6 {[%clk 0:02:57]} 8. b3 {[%clk 0:02:49]}  cxb3 {[%clk 0:02:55]} 9. axb3 {[%clk 0:02:45]}  Nbd7 {[%clk 0:02:54]} 10. Bd2 {[%clk 0:02:43]}  c5 {[%clk 0:02:54]} 11. Ba5 {[%clk 0:02:43]}  Qb8 {[%clk 0:02:54]} 12. Nc3 {[%clk 0:02:42]}  Be7 {[%clk 0:02:46]} 13. e4 {[%clk 0:02:32]}  b4 {[%clk 0:02:41]} 14. Na4 {[%clk 0:02:25]}  Nxe4 {[%clk 0:02:38]} 15. Qc2 {[%clk 0:02:24]}  Ndf6 {[%clk 0:02:34]} 16. Ne5 {[%clk 0:02:20]}  cxd4 {[%clk 0:02:29]} 17. Bxe4 {[%clk 0:01:59]}  Bxe4 {[%clk 0:02:25]} 18. Rxe4 {[%clk 0:01:55]}  Nxe4 {[%clk 0:01:40]} 19. Qc6+ {[%clk 0:01:53]}  Kf8 {[%clk 0:01:41]} 20. Nd7+ {[%clk 0:01:49]} 1-0


[Site "https://www.chess.com"]

[Event "Titled Tuesday Blitz January 10 Late 2023"]
[White "Ankerst, Mihael"]
[Black "Rodriguez Fontecha, Marcos"]
[WhiteFideId "14602369"]
[BlackFideId "2256576"]
[WhiteElo "2370"]
[BlackElo "2309"]
[Result "0-1"]
[Round "06"]
[TimeControl "180+2"]
[Date "2023.01.10"]
[WhiteClock "0:00:15"]
[BlackClock "0:00:37"]

1. e4 {[%clk 0:00:00]}  e6 {[%clk 0:00:00]} 2. d4 {[%clk 0:02:55]}  d5 {[%clk 0:02:59]} 3. Nc3 {[%clk 0:02:55]}  Bb4 {[%clk 0:03:00]} 4. e5 {[%clk 0:02:55]}  Ne7 {[%clk 0:03:00]} 5. Nf3 {[%clk 0:02:56]}  Bxc3+ {[%clk 0:03:00]} 6. bxc3 {[%clk 0:02:56]}  b6 {[%clk 0:02:58]} 7. a4 {[%clk 0:02:55]}  Ba6 {[%clk 0:02:59]} 8. Bxa6 {[%clk 0:02:52]}  Nxa6 {[%clk 0:02:59]} 9. a5 {[%clk 0:02:50]}  Nb8 {[%clk 0:03:00]} 10. axb6 {[%clk 0:02:51]}  cxb6 {[%clk 0:02:55]} 11. Ba3 {[%clk 0:02:51]}  Nbc6 {[%clk 0:02:56]} 12. O-O {[%clk 0:02:50]}  Na5 {[%clk 0:02:52]} 13. Nd2 {[%clk 0:02:49]}  O-O {[%clk 0:02:53]} 14. f4 {[%clk 0:02:41]}  Re8 {[%clk 0:02:47]} 15. Bxe7 {[%clk 0:02:38]}  Qxe7 {[%clk 0:02:46]} 16. f5 {[%clk 0:02:33]}  exf5 {[%clk 0:02:42]} 17. Rxf5 {[%clk 0:02:34]}  Rac8 {[%clk 0:02:27]} 18. Qf3 {[%clk 0:02:33]}  Rc7 {[%clk 0:02:28]} 19. Rf1 {[%clk 0:02:25]}  Qe6 {[%clk 0:02:10]} 20. Qh5 {[%clk 0:01:57]}  Qg6 {[%clk 0:01:57]} 21. Qf3 {[%clk 0:01:33]}  Qe6 {[%clk 0:01:52]} 22. Qh5 {[%clk 0:01:32]}  Rf8 {[%clk 0:01:42]} 23. R1f3 {[%clk 0:01:30]}  Qg6 {[%clk 0:01:35]} 24. Qh3 {[%clk 0:00:36]}  Rfc8 {[%clk 0:01:26]} 25. Nf1 {[%clk 0:00:36]}  Nc4 {[%clk 0:00:53]} 26. Ng3 {[%clk 0:00:35]}  Nd2 {[%clk 0:00:50]} 27. Rf2 {[%clk 0:00:33]}  Ne4 {[%clk 0:00:48]} 28. Nxe4 {[%clk 0:00:27]}  dxe4 {[%clk 0:00:40]} 29. d5 {[%clk 0:00:26]}  Rxc3 {[%clk 0:00:41]} 30. Qh4 {[%clk 0:00:23]}  e3 {[%clk 0:00:38]} 31. Re2 {[%clk 0:00:15]}  Qxf5 {[%clk 0:00:37]} 0-1


[Site "https://www.chess.com"]

[Event "Titled Tuesday Blitz January 10 Late 2023"]
[White "Liu, Kelsey"]
[Black "Fernandez Garcia, Gumersindo"]
[WhiteFideId "30944481"]
[BlackFideId "24516740"]
[WhiteElo "2065"]
[BlackElo "2160"]
[Result "0-1"]
[Round "06"]
[TimeControl "180+2"]
[Date "2023.01.10"]
[WhiteClock "0:00:01"]
[BlackClock "0:00:17"]

1. e4 {[%clk 0:00:00]}  c5 {[%clk 0:00:00]} 2. Nf3 {[%clk 0:02:01]}  g6 {[%clk 0:02:58]} 3. d4 {[%clk 0:02:01]}  cxd4 {[%clk 0:02:57]} 4. Qxd4 {[%clk 0:02:01]}  Nf6 {[%clk 0:02:58]} 5. Nc3 {[%clk 0:02:01]}  Nc6 {[%clk 0:02:58]} 6. Qa4 {[%clk 0:02:01]}  d6 {[%clk 0:02:57]} 7. e5 {[%clk 0:02:02]}  dxe5 {[%clk 0:02:56]} 8. Nxe5 {[%clk 0:01:48]}  Bd7 {[%clk 0:02:54]} 9. Nxd7 {[%clk 0:01:46]}  Qxd7 {[%clk 0:02:55]} 10. Be3 {[%clk 0:01:44]}  Bg7 {[%clk 0:02:55]} 11. Rd1 {[%clk 0:01:43]}  Qg4 {[%clk 0:02:49]} 12. Qb5 {[%clk 0:01:43]}  O-O {[%clk 0:02:41]} 13. Qxb7 {[%clk 0:01:20]}  Nb4 {[%clk 0:02:22]} 14. Bd3 {[%clk 0:01:14]}  Nxd3+ {[%clk 0:02:17]} 15. Rxd3 {[%clk 0:01:05]}  Rab8 {[%clk 0:02:02]} 16. Qf3 {[%clk 0:01:06]}  Qxf3 {[%clk 0:01:58]} 17. gxf3 {[%clk 0:01:05]}  Rxb2 {[%clk 0:01:55]} 18. Kd2 {[%clk 0:01:06]}  a6 {[%clk 0:01:55]} 19. Rb1 {[%clk 0:01:02]}  Rxb1 {[%clk 0:01:42]} 20. Nxb1 {[%clk 0:00:53]}  e6 {[%clk 0:01:38]} 21. Bc5 {[%clk 0:00:54]}  Rc8 {[%clk 0:01:35]} 22. Bd6 {[%clk 0:00:51]}  Nd5 {[%clk 0:01:33]} 23. Ra3 {[%clk 0:00:37]}  Rc6 {[%clk 0:01:30]} 24. Bg3 {[%clk 0:00:27]}  Bh6+ {[%clk 0:01:26]} 25. Kd1 {[%clk 0:00:24]}  Bg7 {[%clk 0:01:11]} 26. c4 {[%clk 0:00:23]}  Rxc4 {[%clk 0:01:08]} 27. Rxa6 {[%clk 0:00:22]}  h5 {[%clk 0:01:06]} 28. Ra8+ {[%clk 0:00:22]}  Kh7 {[%clk 0:01:06]} 29. Nd2 {[%clk 0:00:19]}  Nc3+ {[%clk 0:01:05]} 30. Kc2 {[%clk 0:00:20]}  Rc6 {[%clk 0:00:59]} 31. Kb3 {[%clk 0:00:17]}  Rb6+ {[%clk 0:00:59]} 32. Kc2 {[%clk 0:00:16]}  Nd5 {[%clk 0:00:57]} 33. a4 {[%clk 0:00:16]}  Nb4+ {[%clk 0:00:53]} 34. Kd1 {[%clk 0:00:15]}  Nc6 {[%clk 0:00:52]} 35. a5 {[%clk 0:00:14]}  Rb2 {[%clk 0:00:45]} 36. a6 {[%clk 0:00:14]}  Bc3 {[%clk 0:00:46]} 37. Bf4 {[%clk 0:00:13]}  e5 {[%clk 0:00:45]} 38. Be3 {[%clk 0:00:13]}  Ra2 {[%clk 0:00:44]} 39. a7 {[%clk 0:00:13]}  Nd4 {[%clk 0:00:41]} 40. Ne4 {[%clk 0:00:12]}  Ra1+ {[%clk 0:00:41]} 41. Bc1 {[%clk 0:00:08]}  Bb2 {[%clk 0:00:34]} 42. Kd2 {[%clk 0:00:07]}  Bxc1+ {[%clk 0:00:34]} 43. Kd3 {[%clk 0:00:02]}  Kg7 {[%clk 0:00:31]} 44. Nd6 {[%clk 0:00:03]}  Ra3+ {[%clk 0:00:27]} 45. Ke4 {[%clk 0:00:02]}  Nc6 {[%clk 0:00:21]} 46. Nb5 {[%clk 0:00:03]}  Ra5 {[%clk 0:00:19]} 47. Rc8 {[%clk 0:00:02]}  Nxa7 {[%clk 0:00:18]} 48. Ra8 {[%clk 0:00:01]}  Nc6 {[%clk 0:00:18]} 49. Ra7 {[%clk 0:00:01]}  Rxa7 {[%clk 0:00:17]} 0-1


[Site "https://www.chess.com"]

[Event "Titled Tuesday Blitz January 10 Late 2023"]
[White "Khandelwal, Ankush"]
[Black "Atanasov, Radislav"]
[WhiteFideId "413470"]
[BlackFideId "2901471"]
[WhiteElo "2205"]
[BlackElo "2025"]
[Result "1-0"]
[Round "06"]
[TimeControl "180+2"]
[Date "2023.01.10"]
[WhiteClock "0:02:01"]
[BlackClock "0:00:11"]

1. e4 {[%clk 0:00:00]}  e5 {[%clk 0:00:00]} 2. Nf3 {[%clk 0:03:00]}  Nc6 {[%clk 0:02:59]} 3. d4 {[%clk 0:03:00]}  exd4 {[%clk 0:02:59]} 4. Nxd4 {[%clk 0:03:01]}  Bc5 {[%clk 0:02:58]} 5. Nb3 {[%clk 0:03:02]}  Bb6 {[%clk 0:02:58]} 6. Nc3 {[%clk 0:02:59]}  d6 {[%clk 0:02:58]} 7. Qe2 {[%clk 0:02:59]}  Nf6 {[%clk 0:02:57]} 8. Be3 {[%clk 0:02:58]}  Be6 {[%clk 0:02:54]} 9. O-O-O {[%clk 0:02:58]}  O-O {[%clk 0:02:51]} 10. f3 {[%clk 0:02:57]}  Re8 {[%clk 0:02:50]} 11. g4 {[%clk 0:02:52]}  Bxe3+ {[%clk 0:02:50]} 12. Qxe3 {[%clk 0:02:51]}  d5 {[%clk 0:01:51]} 13. g5 {[%clk 0:02:52]}  Nh5 {[%clk 0:01:40]} 14. exd5 {[%clk 0:02:51]}  Bxd5 {[%clk 0:01:39]} 15. Qc5 {[%clk 0:02:50]}  Qxg5+ {[%clk 0:01:37]} 16. Kb1 {[%clk 0:02:30]}  Nf4 {[%clk 0:01:24]} 17. Nxd5 {[%clk 0:02:30]}  Nxd5 {[%clk 0:00:41]} 18. Bc4 {[%clk 0:02:02]}  Nce7 {[%clk 0:00:38]} 19. Bxd5 {[%clk 0:02:02]}  c6 {[%clk 0:00:11]} 20. Bxf7+ {[%clk 0:02:01]} 1-0


[Site "https://www.chess.com"]